[Event "Titled Tuesday Blitz November 16 2021"]
[White "Bortnyk, Olexandr"]
[Black "Iskusnyh, Sergei"]
[WhiteFideId "14120828"]
[BlackFideId "4120027"]
[WhiteElo "2723"]
[BlackElo "2492"]
[Result "1-0"]
[Round "09"]
[TimeControl "180+1"]
[Date "2021.11.16"]
[WhiteClock "0:00:16"]
[BlackClock "0:00:04"]

1. g4 {[%clk 0:03:00]}  e5 {[%clk 0:02:54]} 2. Bg2 {[%clk 0:02:57]}  Nc6 {[%clk 0:02:53]} 3. c4 {[%clk 0:02:57]}  Bc5 {[%clk 0:02:43]} 4. e3 {[%clk 0:02:56]}  d6 {[%clk 0:02:42]} 5. Nc3 {[%clk 0:02:55]}  Nge7 {[%clk 0:02:39]} 6. h4 {[%clk 0:02:40]}  O-O {[%clk 0:02:36]} 7. g5 {[%clk 0:02:37]}  f5 {[%clk 0:02:35]} 8. gxf6 {[%clk 0:02:26]}  Rxf6 {[%clk 0:02:35]} 9. Ne4 {[%clk 0:02:26]}  Rf8 {[%clk 0:02:33]} 10. Nh3 {[%clk 0:02:12]}  Kh8 {[%clk 0:02:29]} 11. Nhg5 {[%clk 0:02:07]}  Bf5 {[%clk 0:02:24]} 12. Ng3 {[%clk 0:02:01]}  Bd3 {[%clk 0:02:13]} 13. Be4 {[%clk 0:02:00]}  Bxe4 {[%clk 0:01:39]} 14. N3xe4 {[%clk 0:01:59]}  Qd7 {[%clk 0:01:30]} 15. a3 {[%clk 0:01:27]}  a5 {[%clk 0:01:22]} 16. Ng3 {[%clk 0:01:18]}  Nf5 {[%clk 0:01:14]} 17. Qc2 {[%clk 0:01:13]}  Rae8 {[%clk 0:01:02]} 18. b3 {[%clk 0:01:12]}  h6 {[%clk 0:00:50]} 19. Bb2 {[%clk 0:01:09]}  hxg5 {[%clk 0:00:46]} 20. hxg5+ {[%clk 0:01:09]}  Kg8 {[%clk 0:00:47]} 21. O-O-O {[%clk 0:01:10]}  Qe6 {[%clk 0:00:30]} 22. Rh5 {[%clk 0:01:01]}  e4 {[%clk 0:00:28]} 23. Rdh1 {[%clk 0:00:58]}  Nxg3 {[%clk 0:00:25]} 24. fxg3 {[%clk 0:00:55]}  Rf3 {[%clk 0:00:16]} 25. Kb1 {[%clk 0:00:44]}  Qg6 {[%clk 0:00:14]} 26. Rh8+ {[%clk 0:00:35]}  Kf7 {[%clk 0:00:13]} 27. R8h4 {[%clk 0:00:36]}  Ke7 {[%clk 0:00:12]} 28. Bxg7 {[%clk 0:00:30]}  Kd7 {[%clk 0:00:11]} 29. Bf6 {[%clk 0:00:21]}  Ne5 {[%clk 0:00:10]} 30. b4 {[%clk 0:00:19]}  axb4 {[%clk 0:00:09]} 31. axb4 {[%clk 0:00:20]}  Bb6 {[%clk 0:00:08]} 32. Rh7+ {[%clk 0:00:18]}  Kc8 {[%clk 0:00:08]} 33. Qa4 {[%clk 0:00:19]}  Kb8 {[%clk 0:00:07]} 34. R1h6 {[%clk 0:00:17]}  Rf1+ {[%clk 0:00:04]} 35. Kc2 {[%clk 0:00:16]} 1-0


[Site "https://www.chess.com"]

[Event "Titled Tuesday Blitz November 16 2021"]
[White "Drygalov, Andrey"]
[Black "Sviridov, Valery"]
[WhiteFideId "24171735"]
[BlackFideId "4120680"]
[WhiteElo "2540"]
[BlackElo "2454"]
[Result "0-1"]
[Round "09"]
[TimeControl "180+1"]
[Date "2021.11.16"]
[WhiteClock "0:00:05"]
[BlackClock "0:00:11"]

1. e4 {[%clk 0:03:00]}  e5 {[%clk 0:02:58]} 2. Nf3 {[%clk 0:03:00]}  Nc6 {[%clk 0:02:59]} 3. Bc4 {[%clk 0:03:00]}  Nf6 {[%clk 0:02:59]} 4. d3 {[%clk 0:03:00]}  Bc5 {[%clk 0:02:58]} 5. O-O {[%clk 0:02:59]}  d6 {[%clk 0:02:57]} 6. c3 {[%clk 0:02:58]}  a6 {[%clk 0:02:57]} 7. a4 {[%clk 0:02:58]}  h6 {[%clk 0:02:54]} 8. Nbd2 {[%clk 0:02:57]}  Ba7 {[%clk 0:02:54]} 9. Re1 {[%clk 0:02:57]}  O-O {[%clk 0:02:54]} 10. h3 {[%clk 0:02:56]}  Ne7 {[%clk 0:02:54]} 11. Nf1 {[%clk 0:02:51]}  Ng6 {[%clk 0:02:53]} 12. Ng3 {[%clk 0:02:51]}  c6 {[%clk 0:02:33]} 13. Bb3 {[%clk 0:02:51]}  Be6 {[%clk 0:02:29]} 14. d4 {[%clk 0:02:35]}  Re8 {[%clk 0:02:26]} 15. Be3 {[%clk 0:02:29]}  Bxb3 {[%clk 0:02:22]} 16. Qxb3 {[%clk 0:02:29]}  Qc7 {[%clk 0:02:21]} 17. Rad1 {[%clk 0:02:23]}  exd4 {[%clk 0:02:18]} 18. Bxd4 {[%clk 0:02:22]}  Bxd4 {[%clk 0:02:18]} 19. Nxd4 {[%clk 0:02:15]}  Rad8 {[%clk 0:02:15]} 20. Ndf5 {[%clk 0:02:13]}  Nf4 {[%clk 0:02:12]} 21. c4 {[%clk 0:02:02]}  Re6 {[%clk 0:01:42]} 22. Qf3 {[%clk 0:01:52]}  Ng6 {[%clk 0:01:40]} 23. Qc3 {[%clk 0:01:52]}  Nf8 {[%clk 0:01:34]} 24. Re3 {[%clk 0:01:31]}  N8d7 {[%clk 0:01:27]} 25. a5 {[%clk 0:00:49]}  Kh7 {[%clk 0:01:23]} 26. b4 {[%clk 0:00:48]}  g6 {[%clk 0:01:23]} 27. Nd4 {[%clk 0:00:47]}  Re7 {[%clk 0:01:23]} 28. Nf3 {[%clk 0:00:41]}  Rde8 {[%clk 0:01:18]} 29. Red3 {[%clk 0:00:35]}  Re6 {[%clk 0:01:18]} 30. R3d2 {[%clk 0:00:32]}  c5 {[%clk 0:01:14]} 31. b5 {[%clk 0:00:32]}  Kg8 {[%clk 0:01:04]} 32. Rd3 {[%clk 0:00:28]}  Kh7 {[%clk 0:00:40]} 33. Qd2 {[%clk 0:00:22]}  axb5 {[%clk 0:00:37]} 34. cxb5 {[%clk 0:00:22]}  c4 {[%clk 0:00:38]} 35. Rd4 {[%clk 0:00:19]}  c3 {[%clk 0:00:33]} 36. Qc2 {[%clk 0:00:19]}  Qxa5 {[%clk 0:00:31]} 37. Rxd6 {[%clk 0:00:19]}  Rxd6 {[%clk 0:00:30]} 38. Rxd6 {[%clk 0:00:20]}  Qxb5 {[%clk 0:00:30]} 39. Qxc3 {[%clk 0:00:18]}  Nxe4 {[%clk 0:00:30]} 40. Nxe4 {[%clk 0:00:18]}  Rxe4 {[%clk 0:00:31]} 41. Qc7 {[%clk 0:00:18]}  Ne5 {[%clk 0:00:23]} 42. Rf6 {[%clk 0:00:10]}  Kg7 {[%clk 0:00:21]} 43. Nxe5 {[%clk 0:00:05]}  Kxf6 {[%clk 0:00:21]} 44. Nd7+ {[%clk 0:00:06]}  Kg7 {[%clk 0:00:14]} 45. Qc8 {[%clk 0:00:06]}  Qb4 {[%clk 0:00:11]} 46. Qd8 {[%clk 0:00:05]}  Re1+ {[%clk 0:00:11]} 0-1


[Site "https://www.chess.com"]

[Event "Titled Tuesday Blitz November 16 2021"]
[White "FGHSMN"]
[Black "Pichot, Alan"]
[BlackFideId "110973"]
[WhiteElo "2694"]
[BlackElo "2600"]
[Result "0-1"]
[Round "09"]
[TimeControl "180+1"]
[Date "2021.11.16"]
[WhiteClock "0:00:07"]
[BlackClock "0:00:25"]

1. e4 {[%clk 0:03:00]}  e5 {[%clk 0:02:58]} 2. f4 {[%clk 0:03:00]}  d5 {[%clk 0:02:57]} 3. exd5 {[%clk 0:03:00]}  e4 {[%clk 0:02:57]} 4. d3 {[%clk 0:03:00]}  exd3 {[%clk 0:02:50]} 5. Bxd3 {[%clk 0:02:57]}  Qxd5 {[%clk 0:02:49]} 6. Nf3 {[%clk 0:02:53]}  Nf6 {[%clk 0:02:47]} 7. Nc3 {[%clk 0:02:38]}  Bb4 {[%clk 0:02:38]} 8. Bd2 {[%clk 0:02:11]}  Qe6+ {[%clk 0:02:29]} 9. Qe2 {[%clk 0:02:02]}  O-O {[%clk 0:02:24]} 10. Qxe6 {[%clk 0:02:00]}  Bxe6 {[%clk 0:02:25]} 11. O-O-O {[%clk 0:02:00]}  c6 {[%clk 0:02:07]} 12. Ng5 {[%clk 0:01:51]}  Bg4 {[%clk 0:02:01]} 13. Rde1 {[%clk 0:01:51]}  h6 {[%clk 0:02:01]} 14. Nge4 {[%clk 0:01:48]}  Nbd7 {[%clk 0:02:01]} 15. h3 {[%clk 0:01:45]}  Be6 {[%clk 0:01:59]} 16. f5 {[%clk 0:01:45]}  Bd5 {[%clk 0:01:55]} 17. Nxf6+ {[%clk 0:01:21]}  Nxf6 {[%clk 0:01:54]} 18. a3 {[%clk 0:01:19]}  Ba5 {[%clk 0:01:48]} 19. b4 {[%clk 0:00:55]}  Bc7 {[%clk 0:01:39]} 20. Nxd5 {[%clk 0:00:53]}  cxd5 {[%clk 0:01:30]} 21. Re7 {[%clk 0:00:49]}  Rac8 {[%clk 0:01:29]} 22. Rhe1 {[%clk 0:00:45]}  Rfd8 {[%clk 0:01:09]} 23. g4 {[%clk 0:00:45]}  Kf8 {[%clk 0:01:09]} 24. R7e2 {[%clk 0:00:22]}  Bg3 {[%clk 0:01:09]} 25. Rg1 {[%clk 0:00:20]}  Bh4 {[%clk 0:01:09]} 26. Kb2 {[%clk 0:00:18]}  Ne4 {[%clk 0:01:00]} 27. Bxe4 {[%clk 0:00:16]}  dxe4 {[%clk 0:01:01]} 28. Bc3 {[%clk 0:00:15]}  Rc4 {[%clk 0:01:00]} 29. Be5 {[%clk 0:00:13]}  Bg5 {[%clk 0:00:54]} 30. c3 {[%clk 0:00:12]}  Rd3 {[%clk 0:00:54]} 31. Rge1 {[%clk 0:00:11]}  e3 {[%clk 0:00:46]} 32. Bd4 {[%clk 0:00:10]}  Kg8 {[%clk 0:00:27]} 33. Kc2 {[%clk 0:00:08]}  Rdxd4 {[%clk 0:00:27]} 34. Kb3 {[%clk 0:00:06]}  Re4 {[%clk 0:00:24]} 35. Rd1 {[%clk 0:00:05]}  b5 {[%clk 0:00:22]} 36. Rd7 {[%clk 0:00:04]}  a6 {[%clk 0:00:23]} 37. Rd3 {[%clk 0:00:02]}  h5 {[%clk 0:00:20]} 38. gxh5 {[%clk 0:00:01]}  Kh7 {[%clk 0:00:20]} 39. a4 {[%clk 0:00:01]}  Kh6 {[%clk 0:00:20]} 40. axb5 {[%clk 0:00:02]}  axb5 {[%clk 0:00:21]} 41. Rd5 {[%clk 0:00:01]}  Bf6 {[%clk 0:00:21]} 42. Rxb5 {[%clk 0:00:02]}  Rxc3+ {[%clk 0:00:22]} 43. Ka4 {[%clk 0:00:02]}  Rd3 {[%clk 0:00:22]} 44. Rc5 {[%clk 0:00:02]}  Rd2 {[%clk 0:00:23]} 45. Re1 {[%clk 0:00:02]}  Ra2+ {[%clk 0:00:21]} 46. Kb3 {[%clk 0:00:02]}  Rb2+ {[%clk 0:00:22]} 47. Ka3 {[%clk 0:00:03]}  Rbxb4 {[%clk 0:00:22]} 48. Rxe3 {[%clk 0:00:03]}  Ra4+ {[%clk 0:00:22]} 49. Kb3 {[%clk 0:00:03]}  Rxe3+ {[%clk 0:00:23]} 50. Kxa4 {[%clk 0:00:04]}  Rxh3 {[%clk 0:00:23]} 51. Kb5 {[%clk 0:00:03]}  Rxh5 {[%clk 0:00:23]} 52. Kc4 {[%clk 0:00:04]}  Kg5 {[%clk 0:00:23]} 53. Kd3 {[%clk 0:00:05]}  Rh4 {[%clk 0:00:23]} 54. Ke2 {[%clk 0:00:05]}  Re4+ {[%clk 0:00:23]} 55. Kf3 {[%clk 0:00:06]}  Re5 {[%clk 0:00:24]} 56. Rc4 {[%clk 0:00:06]}  Rxf5+ {[%clk 0:00:25]} 57. Kg3 {[%clk 0:00:06]}  Kg6 {[%clk 0:00:25]} 58. Rg4+ {[%clk 0:00:07]}  Rg5 {[%clk 0:00:25]} 0-1


[Site "https://www.chess.com"]

[Event "Titled Tuesday Blitz November 16 2021"]
[White "Gubajdullin, Alexei"]
[Black "Durarbayli, Vasif"]
[WhiteFideId "4141202"]
[BlackFideId "13402935"]
[WhiteElo "2268"]
[BlackElo "2522"]
[Result "1-0"]
[Round "09"]
[TimeControl "180+1"]
[Date "2021.11.16"]
[WhiteClock "0:00:39"]
[BlackClock "0:00:28"]

1. d4 {[%clk 0:03:00]}  Nf6 {[%clk 0:02:59]} 2. Nf3 {[%clk 0:03:00]}  e6 {[%clk 0:02:58]} 3. Bf4 {[%clk 0:02:59]}  c5 {[%clk 0:02:57]} 4. e3 {[%clk 0:02:58]}  Nc6 {[%clk 0:02:54]} 5. c3 {[%clk 0:02:57]}  Be7 {[%clk 0:02:52]} 6. Nbd2 {[%clk 0:02:54]}  O-O {[%clk 0:02:52]} 7. h3 {[%clk 0:02:48]}  b6 {[%clk 0:02:42]} 8. Bd3 {[%clk 0:02:44]}  Bb7 {[%clk 0:02:42]} 9. O-O {[%clk 0:02:36]}  d5 {[%clk 0:02:38]} 10. Ne5 {[%clk 0:02:32]}  Nxe5 {[%clk 0:02:38]} 11. dxe5 {[%clk 0:02:28]}  Nd7 {[%clk 0:02:35]} 12. Qg4 {[%clk 0:02:22]}  f5 {[%clk 0:02:15]} 13. exf6 {[%clk 0:02:18]}  Rxf6 {[%clk 0:02:14]} 14. Nf3 {[%clk 0:02:15]}  Nf8 {[%clk 0:02:03]} 15. Be5 {[%clk 0:02:06]}  Rf7 {[%clk 0:01:59]} 16. h4 {[%clk 0:01:59]}  Bf6 {[%clk 0:01:58]} 17. Ng5 {[%clk 0:01:54]}  Bxg5 {[%clk 0:01:40]} 18. hxg5 {[%clk 0:01:54]}  Ng6 {[%clk 0:01:41]} 19. Bxg6 {[%clk 0:01:44]}  hxg6 {[%clk 0:01:40]} 20. f4 {[%clk 0:01:44]}  Rf5 {[%clk 0:01:35]} 21. Rf3 {[%clk 0:01:38]}  d4 {[%clk 0:01:21]} 22. Rh3 {[%clk 0:01:37]}  dxe3 {[%clk 0:01:17]} 23. Rd1 {[%clk 0:01:21]}  Qf8 {[%clk 0:00:56]} 24. Qh4 {[%clk 0:01:21]}  Bc6 {[%clk 0:00:53]} 25. Qh7+ {[%clk 0:01:02]}  Kf7 {[%clk 0:00:53]} 26. Rxe3 {[%clk 0:00:55]}  Qg8 {[%clk 0:00:45]} 27. Rh3 {[%clk 0:00:46]}  Rd8 {[%clk 0:00:28]} 28. Rxd8 {[%clk 0:00:39]} 1-0


[Site "https://www.chess.com"]

[Event "Titled Tuesday Blitz November 16 2021"]
[White "Dronavalli, Harika"]
[Black "Aditya Mittal"]
[WhiteFideId "5015197"]
[BlackFideId "35042025"]
[WhiteElo "2422"]
[BlackElo "2245"]
[Result "1/2-1/2"]
[Round "09"]
[TimeControl "180+1"]
[Date "2021.11.16"]
[WhiteClock "0:00:11"]
[BlackClock "0:00:04"]

1. Nf3 {[%clk 0:03:00]}  d5 {[%clk 0:02:59]} 2. c4 {[%clk 0:02:59]}  e6 {[%clk 0:02:58]} 3. g3 {[%clk 0:02:57]}  Nf6 {[%clk 0:02:59]} 4. b3 {[%clk 0:02:56]}  d4 {[%clk 0:02:59]} 5. Bg2 {[%clk 0:02:55]}  c5 {[%clk 0:02:59]} 6. O-O {[%clk 0:02:55]}  Nc6 {[%clk 0:03:00]} 7. e3 {[%clk 0:02:55]}  e5 {[%clk 0:02:58]} 8. exd4 {[%clk 0:02:55]}  exd4 {[%clk 0:02:59]} 9. Re1+ {[%clk 0:02:53]}  Be7 {[%clk 0:03:00]} 10. d3 {[%clk 0:02:53]}  O-O {[%clk 0:03:00]} 11. Bf4 {[%clk 0:02:54]}  Bg4 {[%clk 0:02:54]} 12. h3 {[%clk 0:02:53]}  Bh5 {[%clk 0:02:51]} 13. Nbd2 {[%clk 0:02:45]}  Bd6 {[%clk 0:02:46]} 14. Bxd6 {[%clk 0:02:36]}  Qxd6 {[%clk 0:02:47]} 15. a3 {[%clk 0:02:35]}  Rfe8 {[%clk 0:02:44]} 16. Rxe8+ {[%clk 0:02:31]}  Rxe8 {[%clk 0:02:44]} 17. Qf1 {[%clk 0:02:31]}  h6 {[%clk 0:02:23]} 18. Re1 {[%clk 0:02:20]}  Rxe1 {[%clk 0:02:24]} 19. Qxe1 {[%clk 0:02:20]}  Bg6 {[%clk 0:02:09]} 20. Bf1 {[%clk 0:02:20]}  Bf5 {[%clk 0:02:05]} 21. Nh4 {[%clk 0:02:05]}  Be6 {[%clk 0:02:02]} 22. Kh2 {[%clk 0:01:52]}  g5 {[%clk 0:01:55]} 23. Nhf3 {[%clk 0:01:37]}  Kg7 {[%clk 0:01:56]} 24. Ng1 {[%clk 0:01:27]}  Ne5 {[%clk 0:01:49]} 25. Ngf3 {[%clk 0:01:13]}  Ng6 {[%clk 0:01:49]} 26. Ne4 {[%clk 0:01:11]}  Nxe4 {[%clk 0:01:48]} 27. Qxe4 {[%clk 0:01:11]}  b5 {[%clk 0:01:32]} 28. Bg2 {[%clk 0:01:01]}  bxc4 {[%clk 0:01:21]} 29. bxc4 {[%clk 0:01:01]}  Bd7 {[%clk 0:00:53]} 30. Qe2 {[%clk 0:00:55]}  Bc6 {[%clk 0:00:40]} 31. Nd2 {[%clk 0:00:54]}  Bxg2 {[%clk 0:00:39]} 32. Kxg2 {[%clk 0:00:54]}  Qa6 {[%clk 0:00:39]} 33. Ne4 {[%clk 0:00:47]}  Qc6 {[%clk 0:00:24]} 34. Kh2 {[%clk 0:00:36]}  Ne5 {[%clk 0:00:24]} 35. f4 {[%clk 0:00:22]}  gxf4 {[%clk 0:00:23]} 36. gxf4 {[%clk 0:00:23]}  Ng6 {[%clk 0:00:22]} 37. Qg4 {[%clk 0:00:21]}  Qc7 {[%clk 0:00:19]} 38. Kg3 {[%clk 0:00:20]}  Kf8 {[%clk 0:00:17]} 39. Qf5 {[%clk 0:00:20]}  Qe7 {[%clk 0:00:13]} 40. Qxc5 {[%clk 0:00:19]}  Qxc5 {[%clk 0:00:10]} 41. Nxc5 {[%clk 0:00:20]}  Ne7 {[%clk 0:00:09]} 42. Kg4 {[%clk 0:00:20]}  Kg7 {[%clk 0:00:08]} 43. Nb3 {[%clk 0:00:20]}  f5+ {[%clk 0:00:06]} 44. Kf3 {[%clk 0:00:20]}  Nc6 {[%clk 0:00:07]} 45. Nc5 {[%clk 0:00:19]}  Kf6 {[%clk 0:00:07]} 46. Nb7 {[%clk 0:00:18]}  Ke7 {[%clk 0:00:06]} 47. Nc5 {[%clk 0:00:18]}  Kd6 {[%clk 0:00:06]} 48. Nb3 {[%clk 0:00:18]}  Ke7 {[%clk 0:00:04]} 49. Kg3 {[%clk 0:00:19]}  Kf6 {[%clk 0:00:05]} 50. Kh4 {[%clk 0:00:19]}  Kg6 {[%clk 0:00:05]} 51. Kg3 {[%clk 0:00:20]}  Kf6 {[%clk 0:00:05]} 52. Nc1 {[%clk 0:00:20]}  Ke6 {[%clk 0:00:04]} 53. Ne2 {[%clk 0:00:21]}  Kf6 {[%clk 0:00:05]} 54. Kf3 {[%clk 0:00:21]}  Ke6 {[%clk 0:00:05]} 55. Ng3 {[%clk 0:00:21]}  Kf6 {[%clk 0:00:06]} 56. Ke2 {[%clk 0:00:21]}  Kg6 {[%clk 0:00:06]} 57. Kd2 {[%clk 0:00:21]}  Nd8 {[%clk 0:00:03]} 58. c5 {[%clk 0:00:18]}  Ne6 {[%clk 0:00:03]} 59. c6 {[%clk 0:00:19]}  Kf6 {[%clk 0:00:03]} 60. Ne2 {[%clk 0:00:19]}  Ke7 {[%clk 0:00:03]} 61. Ng3 {[%clk 0:00:18]}  Kd6 {[%clk 0:00:03]} 62. Nxf5+ {[%clk 0:00:18]}  Kxc6 {[%clk 0:00:04]} 63. Nxh6 {[%clk 0:00:19]}  Nxf4 {[%clk 0:00:05]} 64. h4 {[%clk 0:00:19]}  Ng2 {[%clk 0:00:03]} 65. Nf5 {[%clk 0:00:19]}  Kd5 {[%clk 0:00:04]} 66. h5 {[%clk 0:00:20]}  Ke5 {[%clk 0:00:04]} 67. Ng3 {[%clk 0:00:20]}  Nf4 {[%clk 0:00:04]} 68. h6 {[%clk 0:00:20]}  Kf6 {[%clk 0:00:04]} 69. Ne2 {[%clk 0:00:20]}  Ne6 {[%clk 0:00:04]} 70. Ng3 {[%clk 0:00:20]}  Kg6 {[%clk 0:00:04]} 71. Ke2 {[%clk 0:00:21]}  Kxh6 {[%clk 0:00:04]} 72. Kf3 {[%clk 0:00:21]}  Kg5 {[%clk 0:00:05]} 73. Ke4 {[%clk 0:00:22]}  Kf6 {[%clk 0:00:05]} 74. Ne2 {[%clk 0:00:23]}  Ke7 {[%clk 0:00:04]} 75. Nxd4 {[%clk 0:00:23]}  Nc5+ {[%clk 0:00:04]} 76. Ke3 {[%clk 0:00:23]}  a6 {[%clk 0:00:04]} 77. Nc2 {[%clk 0:00:23]}  Kd6 {[%clk 0:00:05]} 78. Kd4 {[%clk 0:00:24]}  Nb3+ {[%clk 0:00:04]} 79. Kc3 {[%clk 0:00:24]}  Nc5 {[%clk 0:00:04]} 80. Kc4 {[%clk 0:00:25]}  Nd7 {[%clk 0:00:04]} 81. d4 {[%clk 0:00:25]}  Nb6+ {[%clk 0:00:04]} 82. Kb4 {[%clk 0:00:25]}  Kd5 {[%clk 0:00:04]} 83. Ka5 {[%clk 0:00:25]}  Nc4+ {[%clk 0:00:05]} 84. Kb4 {[%clk 0:00:24]}  Nd2 {[%clk 0:00:03]} 85. a4 {[%clk 0:00:25]}  Ne4 {[%clk 0:00:03]} 86. Ka5 {[%clk 0:00:25]}  Nc3 {[%clk 0:00:03]} 87. Kb4 {[%clk 0:00:25]}  Ne4 {[%clk 0:00:04]} 88. Ka5 {[%clk 0:00:25]}  Nc3 {[%clk 0:00:04]} 89. Kb4 {[%clk 0:00:11]}  Ne4 {[%clk 0:00:04]} 1/2-1/2


[Site "https://www.chess.com"]

[Event "Titled Tuesday Blitz November 16 2021"]
[White "Horobetz, Graham"]
[Black "Kamsky, Gata"]
[WhiteFideId "2047322"]
[BlackFideId "2000024"]
[WhiteElo "2618"]
[BlackElo "2645"]
[Result "0-1"]
[Round "09"]
[TimeControl "180+1"]
[Date "2021.11.16"]
[WhiteClock "0:00:11"]
[BlackClock "0:01:39"]

1. e4 {[%clk 0:02:44]}  c5 {[%clk 0:02:52]} 2. Nf3 {[%clk 0:02:42]}  e6 {[%clk 0:02:52]} 3. d4 {[%clk 0:02:42]}  cxd4 {[%clk 0:02:51]} 4. Nxd4 {[%clk 0:02:43]}  a6 {[%clk 0:02:51]} 5. Nc3 {[%clk 0:02:42]}  b5 {[%clk 0:02:50]} 6. Bd3 {[%clk 0:02:30]}  Qb6 {[%clk 0:02:49]} 7. Nb3 {[%clk 0:02:27]}  Qc7 {[%clk 0:02:49]} 8. O-O {[%clk 0:02:26]}  Bb7 {[%clk 0:02:47]} 9. Qe2 {[%clk 0:02:26]}  Nf6 {[%clk 0:02:41]} 10. e5 {[%clk 0:02:17]}  Nd5 {[%clk 0:02:41]} 11. Nxd5 {[%clk 0:02:16]}  Bxd5 {[%clk 0:02:41]} 12. Bd2 {[%clk 0:02:08]}  Nc6 {[%clk 0:02:37]} 13. f4 {[%clk 0:02:03]}  Be7 {[%clk 0:02:14]} 14. a4 {[%clk 0:01:50]}  O-O {[%clk 0:02:07]} 15. axb5 {[%clk 0:01:18]}  axb5 {[%clk 0:02:05]} 16. Rae1 {[%clk 0:01:18]}  g6 {[%clk 0:01:59]} 17. f5 {[%clk 0:01:10]}  exf5 {[%clk 0:01:58]} 18. Qf2 {[%clk 0:00:27]}  Nxe5 {[%clk 0:01:49]} 19. Rxe5 {[%clk 0:00:18]}  Qxe5 {[%clk 0:01:47]} 20. Bc3 {[%clk 0:00:19]}  Qd6 {[%clk 0:01:42]} 21. Re1 {[%clk 0:00:11]}  Bf6 {[%clk 0:01:39]} 0-1


[Site "https://www.chess.com"]

[Event "Titled Tuesday Blitz November 16 2021"]
[White "Korchmar, Vasiliy"]
[Black "Manafov, Vugar"]
[WhiteFideId "24131750"]
[BlackFideId "13410814"]
[WhiteElo "2370"]
[BlackElo "2277"]
[Result "1/2-1/2"]
[Round "09"]
[TimeControl "180+1"]
[Date "2021.11.16"]
[WhiteClock "0:00:03"]
[BlackClock "0:00:09"]

1. e4 {[%clk 0:03:00]}  Nf6 {[%clk 0:02:52]} 2. e5 {[%clk 0:02:59]}  Nd5 {[%clk 0:02:51]} 3. d4 {[%clk 0:03:00]}  d6 {[%clk 0:02:49]} 4. Nf3 {[%clk 0:03:00]}  Nb6 {[%clk 0:02:48]} 5. Bd3 {[%clk 0:02:53]}  g6 {[%clk 0:02:45]} 6. h3 {[%clk 0:02:50]}  Bg7 {[%clk 0:02:46]} 7. O-O {[%clk 0:02:50]}  O-O {[%clk 0:02:45]} 8. Qe2 {[%clk 0:02:44]}  Nc6 {[%clk 0:02:44]} 9. c3 {[%clk 0:02:42]}  dxe5 {[%clk 0:02:42]} 10. dxe5 {[%clk 0:02:43]}  Qd5 {[%clk 0:02:42]} 11. Be4 {[%clk 0:02:34]}  Qe6 {[%clk 0:02:37]} 12. Bf4 {[%clk 0:02:20]}  Qc4 {[%clk 0:02:26]} 13. Qc2 {[%clk 0:01:57]}  Bf5 {[%clk 0:02:23]} 14. Nbd2 {[%clk 0:01:51]}  Bxe4 {[%clk 0:02:21]} 15. Nxe4 {[%clk 0:01:52]}  Nd5 {[%clk 0:02:08]} 16. Bg3 {[%clk 0:01:51]}  Ndb4 {[%clk 0:02:04]} 17. Qb1 {[%clk 0:01:45]}  Nd3 {[%clk 0:02:04]} 18. Ned2 {[%clk 0:01:25]}  Qa6 {[%clk 0:01:56]} 19. Qc2 {[%clk 0:01:21]}  Rad8 {[%clk 0:01:49]} 20. Rfd1 {[%clk 0:01:20]}  Nc5 {[%clk 0:01:48]} 21. Nb3 {[%clk 0:01:11]}  Qa4 {[%clk 0:01:37]} 22. Nfd4 {[%clk 0:00:51]}  Nxd4 {[%clk 0:01:29]} 23. cxd4 {[%clk 0:00:49]}  Na6 {[%clk 0:01:16]} 24. d5 {[%clk 0:00:43]}  Qb5 {[%clk 0:01:15]} 25. Qe4 {[%clk 0:00:37]}  Nb4 {[%clk 0:01:03]} 26. d6 {[%clk 0:00:37]}  exd6 {[%clk 0:01:01]} 27. exd6 {[%clk 0:00:38]}  c5 {[%clk 0:00:55]} 28. Bh4 {[%clk 0:00:24]}  Rd7 {[%clk 0:00:37]} 29. Be7 {[%clk 0:00:23]}  Re8 {[%clk 0:00:35]} 30. Qg4 {[%clk 0:00:18]}  h5 {[%clk 0:00:33]} 31. Qf3 {[%clk 0:00:14]}  Bxb2 {[%clk 0:00:27]} 32. Rab1 {[%clk 0:00:14]}  Bg7 {[%clk 0:00:26]} 33. Nd2 {[%clk 0:00:14]}  Qc6 {[%clk 0:00:26]} 34. Ne4 {[%clk 0:00:13]}  f5 {[%clk 0:00:25]} 35. Qb3+ {[%clk 0:00:11]}  c4 {[%clk 0:00:25]} 36. Qxb4 {[%clk 0:00:10]}  fxe4 {[%clk 0:00:25]} 37. Rdc1 {[%clk 0:00:05]}  c3 {[%clk 0:00:25]} 38. Qb3+ {[%clk 0:00:05]}  Kh7 {[%clk 0:00:25]} 39. Qf7 {[%clk 0:00:05]}  Rc8 {[%clk 0:00:23]} 40. Rb4 {[%clk 0:00:03]}  a5 {[%clk 0:00:23]} 41. Rd4 {[%clk 0:00:01]}  c2 {[%clk 0:00:23]} 42. Rd5 {[%clk 0:00:02]}  Qc4 {[%clk 0:00:23]} 43. Rxh5+ {[%clk 0:00:01]}  gxh5 {[%clk 0:00:23]} 44. Qxh5+ {[%clk 0:00:02]}  Kg8 {[%clk 0:00:23]} 45. Rxc2 {[%clk 0:00:02]}  Qxc2 {[%clk 0:00:08]} 46. Qd5+ {[%clk 0:00:02]}  Kh7 {[%clk 0:00:09]} 47. Qh5+ {[%clk 0:00:03]}  Kg8 {[%clk 0:00:08]} 48. Qd5+ {[%clk 0:00:02]}  Kh7 {[%clk 0:00:09]} 49. Qh5+ {[%clk 0:00:03]}  Kg8 {[%clk 0:00:09]} 1/2-1/2


[Site "https://www.chess.com"]

[Event "Titled Tuesday Blitz November 16 2021"]
[White "Matinian, Nikita"]
[Black "SouS007"]
[WhiteFideId "24129100"]
[WhiteElo "2422"]
[BlackElo "2536"]
[Result "1-0"]
[Round "09"]
[TimeControl "180+1"]
[Date "2021.11.16"]
[WhiteClock "0:01:45"]
[BlackClock "0:01:58"]

1. e4 {[%clk 0:02:38]}  g6 {[%clk 0:02:59]} 2. d4 {[%clk 0:02:38]}  Nf6 {[%clk 0:03:00]} 3. Nc3 {[%clk 0:02:38]}  d5 {[%clk 0:03:00]} 4. e5 {[%clk 0:02:31]}  Ne4 {[%clk 0:03:00]} 5. Bd3 {[%clk 0:02:30]}  Nxc3 {[%clk 0:02:59]} 6. bxc3 {[%clk 0:02:31]}  c5 {[%clk 0:03:00]} 7. h4 {[%clk 0:02:31]}  Qa5 {[%clk 0:02:58]} 8. Bd2 {[%clk 0:02:30]}  c4 {[%clk 0:02:58]} 9. Be2 {[%clk 0:02:29]}  Qa4 {[%clk 0:02:57]} 10. h5 {[%clk 0:02:29]}  Bf5 {[%clk 0:02:57]} 11. hxg6 {[%clk 0:02:22]}  Bxg6 {[%clk 0:02:52]} 12. Nh3 {[%clk 0:02:11]}  Bxc2 {[%clk 0:02:47]} 13. Qc1 {[%clk 0:02:10]}  e6 {[%clk 0:02:48]} 14. Bg5 {[%clk 0:02:07]}  Ba3 {[%clk 0:02:44]} 15. Qf4 {[%clk 0:02:07]}  Bb2 {[%clk 0:02:40]} 16. Qf6 {[%clk 0:02:06]}  Nc6 {[%clk 0:02:25]} 17. Qxh8+ {[%clk 0:01:51]}  Kd7 {[%clk 0:02:25]} 18. Qxa8 {[%clk 0:01:51]}  Qb5 {[%clk 0:01:58]} 19. O-O {[%clk 0:01:45]} 1-0


[Site "https://www.chess.com"]